fUST/lending_fUST_20260625
["ID","MTS","AMOUNT","RATE_DAILY","PERIOD"]
[426370912,1782328540000,500.0,0.00028629,60]
[426370911,1782328540000,500.0,0.00028629,60]
[426370914,1782328541000,500.0,0.00028629,60]
[426370916,1782328541000,500.0,0.00028629,60]
[426370915,1782328541000,500.0,0.00028629,60]
[426370917,1782328541000,500.0,0.00028629,60]
[426370918,1782328542000,545.63732513,0.00028629,60]
[426370920,1782328546000,542.20332064,0.00028629,60]
[426370919,1782328546000,532.20554648,0.00028629,60]
[426370922,1782328548000,536.34230206,0.00028629,60]
[426370921,1782328548000,516.00485155,0.00028629,60]
[426370923,1782328550000,507.0016623,0.00028629,60]
[426370924,1782328551000,526.86338155,0.00028629,60]
[426370926,1782328552000,500.0,0.00028628,60]
[426370925,1782328552000,509.57532867,0.00028629,60]
[426370927,1782328553000,511.70333141,0.00028629,60]
[426370928,1782328555000,501.4533048,0.00028629,60]
[426370930,1782328558000,500.0,0.00028629,60]
[426370929,1782328558000,500.0,0.00028629,60]
[426370931,1782328558000,500.0,0.00028629,60]
[426370936,1782328559000,500.0,0.00028629,60]
[426370935,1782328559000,158.0,0.00028629,120]
[426370934,1782328559000,500.0,0.00028629,60]
[426370933,1782328559000,500.0,0.00028629,60]
[426370932,1782328559000,500.0,0.00028629,60]
[426370940,1782328560000,500.0,0.00028629,60]
[426370939,1782328560000,500.0,0.00028629,60]
[426370938,1782328560000,500.0,0.00028629,60]
[426370937,1782328560000,500.0,0.00028629,60]
[426370942,1782328561000,158.0,0.00029629,120]
[426370941,1782328561000,500.0,0.00028629,60]
[426370943,1782328561000,500.0,0.00028629,60]
[426370945,1782328561000,500.0,0.00028629,60]
[426370946,1782328561000,500.0,0.00028629,60]
[426370947,1782328561000,500.0,0.00028629,60]
[426370944,1782328561000,500.0,0.00028629,60]
[426370954,1782328562000,500.0,0.00028629,60]
[426370952,1782328562000,500.0,0.00028629,60]
[426370953,1782328562000,500.0,0.00028629,60]
[426370950,1782328562000,500.0,0.00028629,60]
[426370951,1782328562000,500.0,0.00028629,60]
[426370949,1782328562000,500.0,0.00028629,60]
[426370948,1782328562000,500.0,0.00028629,60]
[426370955,1782328563000,500.0,0.00028629,60]
[426370957,1782328563000,581.05607521,0.00028629,60]
[426370956,1782328563000,515.6887216,0.00028629,60]
[426370958,1782328564000,517.5820169,0.00028629,60]
[426370960,1782328568000,536.53268133,0.00028629,60]
[426370959,1782328568000,513.31137809,0.00028629,60]
[426370961,1782328571000,528.61624425,0.00028629,60]
[426370962,1782328574000,516.89613535,0.00028629,60]
[426370963,1782328575000,514.09397271,0.00028629,60]
[426370964,1782328578000,364.69116036,0.00028629,60]
[426370965,1782328579000,507.91486205,0.00028629,60]
[426370966,1782328580000,505.44576651,0.00028629,60]
[426370967,1782328583000,529.6725415,0.00028629,60]
[426370968,1782328585000,516.62640195,0.00028629,60]
[426370970,1782328587000,676.04,0.00028629,60]
[426370969,1782328587000,501.38056049,0.00028629,60]
[426370974,1782328588000,676.04,0.00028629,60]
[426370973,1782328588000,676.04,0.00028629,60]
[426370972,1782328588000,676.04,0.00028629,60]
[426370971,1782328588000,676.04,0.00028629,60]
[426370976,1782328589000,676.04,0.00028629,60]
[426370975,1782328589000,676.04,0.00028629,60]
[426370979,1782328590000,500.0,0.00028629,60]
[426370978,1782328590000,676.04,0.00028629,60]
[426370981,1782328590000,500.0,0.00028629,60]
[426370977,1782328590000,500.0,0.00028629,60]
[426370982,1782328590000,676.04,0.00028629,60]
[426370983,1782328590000,500.0,0.00028629,60]
[426370984,1782328590000,506.77346047,0.00028629,60]
[426370980,1782328590000,676.04,0.00028629,60]
[426370988,1782328591000,676.04,0.00028629,60]
[426370987,1782328591000,676.04,0.00028629,60]
[426370986,1782328591000,429.92897325,0.00028629,60]
[426370985,1782328591000,676.04,0.00028629,60]
[426370994,1782328592000,676.04,0.00028629,60]
[426370993,1782328592000,676.04,0.00028629,60]
[426370992,1782328592000,513.68548154,0.00028629,60]
[426370990,1782328592000,511.69406564,0.00028629,60]
[426370991,1782328592000,676.04,0.00028629,60]
[426370989,1782328592000,676.04,0.00028629,60]
[426370995,1782328593000,676.04,0.00028629,60]
[426370996,1782328593000,676.04,0.00028629,60]
[426370997,1782328593000,676.04,0.00028629,60]
[426371001,1782328594000,676.13,0.00028629,60]
[426371000,1782328594000,676.04,0.00028629,60]
[426370999,1782328594000,676.04,0.00028629,60]
[426370998,1782328594000,676.04,0.00028629,60]
[426371003,1782328596000,500.0,0.00028629,60]
[426371002,1782328596000,500.0,0.00028629,60]
[426371007,1782328597000,500.0,0.00028629,60]
[426371006,1782328597000,500.0,0.00028629,60]
[426371005,1782328597000,505.98618795,0.00028629,60]
[426371004,1782328597000,500.0,0.00028629,60]
[426371008,1782328598000,500.0,0.00028629,60]
[426371010,1782328598000,500.0,0.00028629,60]
[426371009,1782328598000,514.0377234,0.00028629,60]
[426371012,1782328598000,500.0,0.00028629,60]
[426371014,1782328598000,500.0,0.00028629,60]
[426371011,1782328598000,500.0,0.00028629,60]
[426371013,1782328598000,276.50035664,0.00028629,60]
[426371016,1782328599000,500.0,0.00028629,60]
[426371015,1782328599000,500.0,0.00028629,60]
[426371019,1782328600000,500.0,0.00028629,60]
[426371018,1782328600000,500.0,0.00028629,60]
[426371017,1782328600000,500.0,0.00028629,60]
[426371023,1782328601000,509.54940176,0.00028629,60]
[426371022,1782328601000,500.0,0.00028629,60]
[426371021,1782328601000,500.0,0.00028629,60]
[426371020,1782328601000,500.0,0.00028629,60]
[426371025,1782328602000,531.37678499,0.00028629,60]
[426371024,1782328602000,500.0,0.00028629,60]
[426371026,1782328603000,500.0,0.00028629,60]
[426371027,1782328603000,500.0,0.00028629,60]
[426371029,1782328604000,513.85599097,0.00028629,60]
[426371028,1782328604000,500.0,0.00028629,60]
[426371031,1782328607000,513.8396374,0.00028629,60]
[426371030,1782328607000,504.46329502,0.00028629,60]
[426371032,1782328609000,520.86967025,0.00028629,60]
[426371035,1782328611000,514.91034021,0.00028629,60]
[426371034,1782328611000,520.79385909,0.00028629,60]
[426371033,1782328611000,547.75507053,0.00028629,60]
[426371036,1782328613000,502.84096625,0.00028629,60]
[426371037,1782328616000,512.32454889,0.00028629,60]
[426371038,1782328617000,507.88426055,0.00028629,60]
[426371039,1782328619000,522.34600979,0.00028629,60]
[426371040,1782328620000,536.89319467,0.00028629,60]
[426371041,1782328623000,519.16843906,0.00028629,60]
[426371042,1782328623000,500.0,0.00028629,60]
[426371045,1782328624000,500.0,0.00028629,60]
[426371044,1782328624000,500.0,0.00028629,60]
[426371043,1782328624000,500.0,0.00028629,60]
[426371048,1782328625000,500.0,0.00028629,60]
[426371047,1782328625000,500.0,0.00028629,60]
[426371046,1782328625000,500.0,0.00028629,60]
[426371052,1782328626000,500.0,0.00028629,60]
[426371051,1782328626000,500.0,0.00028629,60]
[426371050,1782328626000,500.0,0.00028629,60]
[426371049,1782328626000,528.50523488,0.00028629,60]
[426371054,1782328627000,191.8703445,0.0003,120]
[426371053,1782328627000,627.90858165,0.00028629,60]
[426371056,1782328629000,518.30788965,0.00028629,60]
[426371055,1782328629000,518.18840051,0.00028629,60]
[426371058,1782328631000,500.0,0.00028629,60]
[426371057,1782328631000,500.0,0.00028629,60]
[426371062,1782328632000,500.0,0.00028629,60]
[426371061,1782328632000,500.0,0.00028629,60]
[426371060,1782328632000,502.79669837,0.00028629,60]
[426371059,1782328632000,500.0,0.00028629,60]
[426371063,1782328633000,288.10983032,0.00028629,60]
[426371066,1782328634000,602.33,0.00028629,60]
[426371065,1782328634000,602.33,0.00028629,60]
[426371064,1782328634000,514.75133589,0.00028629,60]
[426371068,1782328635000,518.29375465,0.00028629,60]
[426371067,1782328635000,602.33,0.00028629,60]
[426371070,1782328635000,602.33,0.00028629,60]
[426371069,1782328635000,602.33,0.00028629,60]
[426371074,1782328636000,500.0,0.00028629,60]
[426371073,1782328636000,602.33,0.00028629,60]
[426371072,1782328636000,602.33,0.00028629,60]
[426371071,1782328636000,511.4949846,0.00028629,60]
[426371075,1782328636000,602.33,0.00028629,60]
[426371082,1782328637000,500.0,0.00028629,60]
[426371081,1782328637000,602.33,0.00028629,60]
[426371080,1782328637000,500.0,0.00028629,60]
[426371079,1782328637000,602.33,0.00028629,60]
[426371078,1782328637000,500.0,0.00028629,60]
[426371076,1782328637000,500.0,0.00028629,60]
[426371077,1782328637000,602.33,0.00028629,60]
[426371083,1782328638000,602.33,0.00028629,60]
[426371084,1782328638000,602.33,0.00028629,60]
[426371085,1782328638000,602.33,0.00028629,60]
[426371087,1782328638000,602.33,0.00028629,60]
[426371086,1782328638000,500.0,0.00028629,60]
[426371095,1782328639000,500.0,0.00028629,60]
[426371094,1782328639000,602.33,0.00028629,60]
[426371093,1782328639000,500.0,0.00028629,60]
[426371092,1782328639000,602.33,0.00028629,60]
[426371091,1782328639000,505.95742972,0.00028629,60]
[426371090,1782328639000,500.0,0.00028629,60]
[426371089,1782328639000,602.33,0.00028629,60]
[426371088,1782328639000,500.0,0.00028629,60]
[426371096,1782328640000,602.33,0.00028629,60]
[426371097,1782328640000,500.0,0.00028629,60]
[426371098,1782328640000,500.0,0.00028629,60]
[426371101,1782328640000,283.28725181,0.00028629,60]
[426371100,1782328640000,500.0,0.00028629,60]
[426371099,1782328640000,560.04164875,0.00028629,60]
[426371102,1782328640000,327.77,0.00028629,60]
[426371103,1782328640000,602.33,0.00028629,60]
[426371106,1782328641000,602.33,0.00028629,60]
[426371105,1782328641000,602.33,0.00028629,60]
[426371104,1782328641000,602.33,0.00028629,60]
[426371110,1782328642000,500.0,0.00028629,60]
[426371109,1782328642000,428.40172145,0.00028629,60]
[426371108,1782328642000,500.0,0.00028629,60]
[426371107,1782328642000,602.44255937,0.00028629,60]
[426371111,1782328643000,500.0,0.00028629,60]
[426371113,1782328643000,500.0,0.00028629,60]
[426371112,1782328643000,500.0,0.00028629,60]
[426371115,1782328644000,500.0,0.00028629,60]
[426371114,1782328644000,500.0,0.00028629,60]
[426371116,1782328644000,500.0,0.00028629,60]
[426371119,1782328645000,500.0,0.00028629,60]
[426371118,1782328645000,500.0,0.00028629,60]
[426371117,1782328645000,500.0,0.00028629,60]
[426371120,1782328646000,500.0,0.00028629,60]
[426371121,1782328648000,521.89901142,0.00028629,60]
[426371122,1782328649000,537.89700674,0.00028629,60]
[426371123,1782328651000,509.85341858,0.00028629,60]
[426371124,1782328657000,497.77133802,0.00028629,60]
[426371125,1782328661000,500.86374216,0.00028629,60]
[426371126,1782328664000,500.0,0.00028629,60]
[426371127,1782328665000,500.0,0.00028629,60]
[426371129,1782328665000,500.0,0.00028629,60]
[426371128,1782328665000,500.0,0.00028629,60]
[426371132,1782328666000,500.0,0.00028629,60]
[426371131,1782328666000,500.0,0.00028629,60]
[426371130,1782328666000,500.0,0.00028629,60]
[426371137,1782328667000,500.0,0.00028629,60]
[426371136,1782328667000,517.69175337,0.00028629,60]
[426371135,1782328667000,500.0,0.00028629,60]
[426371134,1782328667000,500.0,0.00028629,60]
[426371133,1782328667000,500.0,0.00028629,60]
[426371138,1782328668000,500.0,0.00028629,60]
[426371140,1782328668000,500.0,0.00028629,60]
[426371139,1782328668000,500.0,0.00028629,60]
[426371144,1782328669000,500.0,0.00028629,60]
[426371142,1782328669000,500.0,0.00028629,60]
[426371141,1782328669000,500.0,0.00028629,60]
[426371143,1782328669000,500.0,0.00028629,60]
[426371145,1782328670000,500.0,0.00028629,60]
[426371146,1782328671000,528.92010633,0.00028629,60]
[426371149,1782328673000,500.0,0.00028629,60]
[426371148,1782328673000,500.0,0.00028629,60]
[426371147,1782328673000,417.15472785,0.000287,30]
[426371150,1782328674000,515.30924094,0.00028629,60]
[426371153,1782328674000,584.99026202,0.00028629,60]
[426371152,1782328674000,500.0,0.00028629,60]
[426371151,1782328674000,500.0,0.00028629,60]
[426371154,1782328676000,500.15657739,0.00028629,60]
[426371155,1782328679000,500.0,0.00028628,60]
[426371157,1782328682000,500.0,0.00028629,60]
[426371156,1782328682000,500.0,0.00028629,60]
[426371162,1782328683000,514.58,0.00028629,60]
[426371161,1782328683000,514.58,0.00028629,60]
[426371160,1782328683000,500.00527172,0.00028629,60]
[426371159,1782328683000,514.58,0.00028629,60]
[426371158,1782328683000,500.0,0.00028629,60]
[426371165,1782328684000,514.58,0.00028629,60]
[426371164,1782328684000,514.58,0.00028629,60]
[426371163,1782328684000,514.58,0.00028629,60]
[426371166,1782328685000,514.58,0.00028629,60]
[426371167,1782328685000,514.58,0.00028629,60]
[426371169,1782328685000,588.55069243,0.00028629,60]
[426371168,1782328685000,514.58,0.00028629,60]
[426371173,1782328686000,514.58,0.00028629,60]
[426371172,1782328686000,514.58,0.00028629,60]
[426371171,1782328686000,514.58,0.00028629,60]
[426371170,1782328686000,516.39264136,0.00028629,60]
[426371176,1782328687000,514.58,0.00028629,60]
[426371175,1782328687000,514.58,0.00028629,60]
[426371174,1782328687000,514.58,0.00028629,60]
[426371179,1782328688000,514.58,0.00028629,60]
[426371178,1782328688000,514.58,0.00028629,60]
[426371177,1782328688000,514.58,0.00028629,60]
[426371181,1782328689000,514.58,0.00028629,60]
[426371180,1782328689000,514.58,0.00028629,60]
[426371183,1782328689000,514.58,0.00028629,60]
[426371182,1782328689000,514.58,0.00028629,60]
[426371186,1782328690000,551.94,0.00028629,60]
[426371184,1782328690000,514.58,0.00028629,60]
[426371187,1782328690000,551.94,0.00028629,60]
[426371185,1782328690000,514.61,0.00028629,60]
[426371190,1782328691000,551.94,0.00028629,60]
[426371189,1782328691000,551.94,0.00028629,60]
[426371188,1782328691000,551.94,0.00028629,60]
[426371193,1782328692000,551.94,0.00028629,60]
[426371192,1782328692000,551.94,0.00028629,60]
[426371191,1782328692000,551.94,0.00028629,60]
[426371197,1782328693000,551.94,0.00028629,60]
[426371196,1782328693000,551.94,0.00028629,60]
[426371195,1782328693000,551.94,0.00028629,60]
[426371194,1782328693000,551.94,0.00028629,60]
[426371198,1782328694000,551.94,0.00028629,60]
[426371200,1782328694000,551.94,0.00028629,60]
[426371199,1782328694000,500.0,0.00028628,60]
[426371201,1782328694000,551.94,0.00028629,60]
[426371205,1782328695000,551.94,0.00028629,60]
[426371204,1782328695000,551.94,0.00028629,60]
[426371203,1782328695000,551.94,0.00028629,60]
[426371202,1782328695000,551.94,0.00028629,60]
[426371206,1782328696000,551.94,0.00028629,60]
[426371210,1782328696000,551.94,0.00028629,60]
[426371209,1782328696000,517.58449635,0.00028629,60]
[426371208,1782328696000,551.94,0.00028629,60]
[426371207,1782328696000,500.0,0.00028629,60]
[426371211,1782328697000,551.94,0.00028629,60]
[426371212,1782328697000,551.99,0.00028629,60]
[426371213,1782328699000,500.0,0.00028628,60]
[426371214,1782328704000,536.90561435,0.00028629,60]
[426371215,1782328707000,536.18781498,0.00028629,60]
[426371216,1782328711000,518.15391906,0.000287,60]
[426371217,1782328715000,542.01812234,0.000287,60]
[426371218,1782328717000,515.27382345,0.000287,60]
[426371219,1782328723000,500.0,0.00028628,60]
[426371221,1782328734000,492.08115713,0.000287,60]
[426371220,1782328734000,500.0,0.000287,60]
[426371222,1782328741000,507.84493428,0.000287,60]
[426371225,1782328752000,500.0,0.000287,60]
[426371224,1782328752000,500.0,0.000287,60]
[426371223,1782328752000,500.0,0.000287,60]
[426371226,1782328753000,500.0,0.000287,60]
[426371227,1782328753000,510.11632944,0.000287,60]
[426371228,1782328776000,500.0,0.000287,60]
[426371229,1782328777000,500.0,0.000287,60]
[426371231,1782328807000,500.0,0.000287,30]
[426371230,1782328807000,500.0,0.000287,30]
[426371234,1782328808000,500.0,0.000287,30]
[426371233,1782328808000,500.0,0.000287,30]
[426371232,1782328808000,500.0,0.000287,30]
[426371235,1782328809000,455.55349246,0.000287,30]
[426371236,1782328816000,514.86250019,0.000287,60]
[426371238,1782328818000,298.8155157,0.0003,120]
[426371237,1782328818000,1396.7918558,0.000277,120]
[426371239,1782328820000,505.94160793,0.000287,60]
[426371240,1782328822000,500.0,0.000287,60]
[426371242,1782328823000,200.11,0.000287,60]
[426371241,1782328823000,500.0,0.000287,60]
[426371244,1782328839000,176.01,0.000287,60]
[426371243,1782328839000,500.0,0.000287,60]
[426371245,1782328850000,505.2738384,0.000287,60]
[426371248,1782328862000,500.0,0.000287,60]
[426371247,1782328862000,500.0,0.000287,60]
[426371246,1782328862000,500.0,0.000287,60]
[426371251,1782328863000,500.0,0.000287,60]
[426371250,1782328863000,500.0,0.000287,60]
[426371249,1782328863000,500.0,0.000287,60]
[426371252,1782328864000,500.0,0.000287,60]
[426371253,1782328864000,500.0,0.000287,60]
[426371255,1782328864000,500.0,0.000287,60]
[426371254,1782328864000,500.0,0.000287,60]
[426371256,1782328865000,199.03441146,0.000287,60]
[426371257,1782328878000,500.0,0.000287,60]
[426371261,1782328879000,500.0,0.000287,60]
[426371260,1782328879000,500.0,0.000287,60]
[426371259,1782328879000,500.0,0.000287,60]
[426371258,1782328879000,500.0,0.000287,60]
[426371264,1782328880000,517.91591884,0.000287,60]
[426371263,1782328880000,500.0,0.000287,60]
[426371262,1782328880000,500.0,0.000287,60]
[426371265,1782328881000,529.28442168,0.000287,60]
[426371266,1782328927000,167.996604,0.000287,30]
[426371268,1782328927000,167.996604,0.000287,30]
[426371267,1782328927000,167.996604,0.000287,30]
[426371270,1782328928000,167.996604,0.000287,30]
[426371269,1782328928000,167.996604,0.000287,30]
[426371272,1782328937000,500.0,0.000287,60]
[426371271,1782328937000,500.0,0.000287,60]
[426371274,1782328938000,649.97829563,0.000287,60]
[426371273,1782328938000,500.0,0.000287,60]
[426371276,1782328942000,500.0,0.000287,60]
[426371275,1782328942000,500.0,0.000287,60]
[426371280,1782328943000,500.0,0.000287,60]
[426371279,1782328943000,500.0,0.000287,60]
[426371278,1782328943000,500.0,0.000287,60]
[426371277,1782328943000,500.0,0.000287,60]
[426371281,1782328944000,500.0,0.000287,60]
[426371282,1782328944000,610.314169,0.000287,60]
[426371283,1782328946000,191.8703445,0.0003,120]
[426371284,1782328961000,1000.0,0.000277,30]
[426371286,1782328994000,500.0,0.000287,60]
[426371285,1782328994000,500.0,0.000287,60]
[426371289,1782328995000,500.00000007,0.000287,60]
[426371288,1782328995000,500.0,0.000287,60]
[426371287,1782328995000,500.0,0.000287,60]
[426371292,1782329009000,500.0,0.000287,60]
[426371291,1782329009000,500.0,0.000287,60]
[426371290,1782329009000,500.0,0.000287,60]
[426371294,1782329010000,500.0,0.000287,60]
[426371293,1782329010000,500.0,0.000287,60]
[426371295,1782329011000,500.0,0.000287,60]
[426371296,1782329011000,500.0,0.000287,60]
[426371297,1782329011000,500.0,0.00028712,60]
[426371298,1782329012000,500.0,0.00028712,60]
[426371300,1782329012000,592.8429433,0.00028712,60]
[426371299,1782329012000,500.0,0.00028712,60]
[426371304,1782329018000,500.0,0.00028712,60]
[426371303,1782329018000,500.0,0.00028712,60]
[426371302,1782329018000,500.0,0.00028712,60]
[426371301,1782329018000,500.0,0.00028712,60]
[426371307,1782329019000,500.0,0.00028712,60]
[426371306,1782329019000,500.0,0.00028712,60]
[426371305,1782329019000,500.0,0.00028712,60]
[426371308,1782329020000,500.0,0.00028712,60]
[426371309,1782329020000,500.0,0.00028712,60]
[426371310,1782329020000,500.0,0.00028712,60]
[426371313,1782329021000,500.0,0.00028712,60]
[426371312,1782329021000,500.0,0.00028712,60]
[426371311,1782329021000,500.0,0.00028712,60]
[426371314,1782329022000,160.0,0.00028712,30]
[426371318,1782329022000,500.0,0.00028712,60]
[426371317,1782329022000,500.0,0.00028712,60]
[426371316,1782329022000,500.0,0.00028712,60]
[426371315,1782329022000,500.0,0.00028712,60]
[426371319,1782329023000,447.90804306,0.00028712,60]
[426371320,1782329042000,500.0,0.00028628,60]
[426371321,1782329078000,500.0,0.00028712,60]
[426371323,1782329079000,500.0,0.00028712,60]
[426371322,1782329079000,500.0,0.00028712,60]
[426371324,1782329096000,514.83542947,0.00028712,60]
[426371325,1782329119000,300.0,0.00028712,60]
[426371326,1782329124000,511.94439518,0.00028712,60]
[426371327,1782329138000,239.05241256,0.0003,120]
[426371328,1782329140000,514.22748923,0.00028712,60]
[426371329,1782329144000,515.06383742,0.00028712,60]
[426371330,1782329150000,500.0,0.00028712,60]
[426371331,1782329163000,507.88188471,0.00028712,60]
[426371332,1782329167000,500.0,0.00028712,60]
[426371333,1782329175000,518.32737768,0.00028712,60]
[426371334,1782329196000,509.74387055,0.00028712,60]
[426371335,1782329264000,191.8703445,0.0003,120]
[426371338,1782329294000,515.49705911,0.00028712,60]
[426371337,1782329294000,500.0,0.00028712,60]
[426371336,1782329294000,500.0,0.00028712,60]
[426371379,1782329432000,-155.21875911,0.00025408,5]
[426371385,1782329432000,-7827.32520027,0.0002747,2]
[426371383,1782329432000,-229.99,0.0002715,2]
[426371396,1782329432000,-1296.66822468,0.0002747,2]
[426371381,1782329432000,-2924.4859037,0.00025932,2]
[426371424,1782329435000,500.0,0.00028699,60]
[426371440,1782329438000,-192.2736187,0.00027694,2]
[426371441,1782329438000,-199.1538993,0.00027761,2]
[426371443,1782329438000,-589.16,0.00028628,2]
[426371445,1782329438000,-42.69557085,0.00028699,2]
[426371444,1782329438000,-249.73280919,0.00028699,2]
[426371442,1782329438000,-305.56945555,0.00028482,2]
[426371439,1782329438000,-1550.12418011,0.0002747,2]
[426371438,1782329438000,-1040.33193334,0.0002747,2]
[426371475,1782329440000,-665.83,0.00028712,6]
[426371477,1782329440000,-665.83,0.00028712,6]
[426371489,1782329440000,-665.83,0.00028712,6]
[426371474,1782329440000,-665.83,0.00028712,6]
[426371480,1782329440000,-665.83,0.00028712,6]
[426371476,1782329440000,-665.83,0.00028712,6]
[426371482,1782329440000,-665.83,0.00028712,6]
[426371486,1782329440000,-665.83,0.00028712,6]
[426371478,1782329440000,-665.83,0.00028712,6]
[426371481,1782329440000,-665.83,0.00028712,6]
[426371483,1782329440000,-665.83,0.00028712,6]
[426371485,1782329440000,-665.83,0.00028712,6]
[426371473,1782329440000,-665.83,0.00028712,6]
[426371484,1782329440000,-665.83,0.00028712,6]
[426371479,1782329440000,-665.83,0.00028712,6]
[426371472,1782329440000,-665.83,0.00028712,6]
[426371463,1782329440000,-500.0,0.000287,6]
[426371470,1782329440000,-665.83,0.00028712,6]
[426371455,1782329440000,-457.30442915,0.00028699,2]
[426371456,1782329440000,-500.0,0.00028699,2]
[426371459,1782329440000,-178.17001593,0.00028699,2]
[426371458,1782329440000,-462.56972214,0.00028699,2]
[426371457,1782329440000,-500.0,0.00028699,2]
[426371460,1782329440000,-500.0,0.00028699,2]
[426371471,1782329440000,-665.83,0.00028712,6]
[426371461,1782329440000,-124.41561157,0.00028699,2]
[426371462,1782329440000,-375.58438843,0.00028699,2]
[426371468,1782329440000,-665.83,0.00028712,6]
[426371464,1782329440000,-179.904,0.000287,20]
[426371467,1782329440000,-665.83,0.00028712,6]
[426371466,1782329440000,-500.0,0.00028711,2]
[426371469,1782329440000,-665.83,0.00028712,6]
[426371465,1782329440000,-500.0,0.00028711,2]
[426371492,1782329440000,-500.0,0.00028712,11]
[426371487,1782329440000,-665.83,0.00028712,6]
[426371490,1782329440000,-665.91,0.00028712,6]
[426371513,1782329440000,-500.0,0.00028712,7]
[426371509,1782329440000,-500.0,0.00028712,7]
[426371514,1782329440000,-513.95115399,0.00028712,7]
[426371511,1782329440000,-500.0,0.00028712,7]
[426371510,1782329440000,-500.0,0.00028712,7]
[426371515,1782329440000,-500.0,0.00028712,2]
[426371517,1782329440000,-500.0,0.00028712,2]
[426371518,1782329440000,-517.83921632,0.00028712,14]
[426371516,1782329440000,-500.0,0.00028712,2]
[426371519,1782329440000,-500.0,0.00028712,10]
[426371521,1782329440000,-500.0,0.00028974,6]
[426371523,1782329440000,-151.49,0.00029,2]
[426371522,1782329440000,-151.49,0.00029,2]
[426371524,1782329440000,-151.49,0.00029,2]
[426371488,1782329440000,-665.83,0.00028712,6]
[426371512,1782329440000,-500.0,0.00028712,7]
[426371508,1782329440000,-500.0,0.00028712,7]
[426371520,1782329440000,-575.89073172,0.00028712,10]
[426371506,1782329440000,-1448.16101297,0.00028712,2]
[426371507,1782329440000,-502.37633706,0.00028712,12]
[426371495,1782329440000,-500.0,0.00028712,11]
[426371494,1782329440000,-500.0,0.00028712,11]
[426371496,1782329440000,-500.0,0.00028712,11]